[Event "*** Titled Tuesday 3|2 Blitz"]
[Site "Chess.com"]
[Date "2015.09.01"]
[Round "3"]
[White "ChadaevNikolay"]
[Black "facu57"]
[Result "0-1"]
[WhiteElo "2584"]
[BlackElo "2449"]
[TimeControl "180+2"]
[EndTime "11:33:50 PDT"]
[Termination "facu57 won by resignation"]

1. d4 {[%clk 0:02:58.9]} 1... Nf6 {[%clk 0:03:00.5]} 2. Bf4 {[%clk 0:02:59.2]}
2... e6 {[%clk 0:03:01.6]} 3. e3 {[%clk 0:03:00.1]} 3... c5 {[%clk 0:03:02.3]}
4. c3 {[%clk 0:03:00.8]} 4... b6 {[%clk 0:03:02.3]} 5. Nf3 {[%clk 0:03:01.8]}
5... Be7 {[%clk 0:03:01.1]} 6. h3 {[%clk 0:03:01.1]} 6... O-O {[%clk 0:03:00.9]}
7. Bd3 {[%clk 0:03:01.7]} 7... Ba6 {[%clk 0:02:58.3]} 8. Bxa6 {[%clk 0:02:56.7]}
8... Nxa6 {[%clk 0:03:00.2]} 9. O-O {[%clk 0:02:58.2]} 9... d6 {[%clk
0:02:55.3]} 10. Nbd2 {[%clk 0:02:58.7]} 10... Nc7 {[%clk 0:02:52.2]} 11. Re1
{[%clk 0:02:59.6]} 11... Re8 {[%clk 0:02:51.6]} 12. Qe2 {[%clk 0:02:57.4]} 12...
Qd7 {[%clk 0:02:47.9]} 13. e4 {[%clk 0:02:49.4]} 13... cxd4 {[%clk 0:02:39.8]}
14. cxd4 {[%clk 0:02:49.4]} 14... Rac8 {[%clk 0:02:41.7]} 15. Be3 {[%clk
0:02:42.6]} 15... d5 {[%clk 0:02:35.5]} 16. e5 {[%clk 0:02:43]} 16... Ne4 {[%clk
0:02:36.1]} 17. Nxe4 {[%clk 0:02:21.5]} 17... dxe4 {[%clk 0:02:36.3]} 18. Nd2
{[%clk 0:02:23.2]} 18... Bb4 {[%clk 0:02:27.2]} 19. Nxe4 {[%clk 0:02:23.8]}
19... Bxe1 {[%clk 0:02:26.1]} 20. Rxe1 {[%clk 0:02:25.3]} 20... Nd5 {[%clk
0:02:21.7]} 21. Nd6 {[%clk 0:02:18.2]} 21... Rc7 {[%clk 0:02:22.7]} 22. Nxe8
{[%clk 0:02:17.4]} 22... Qxe8 {[%clk 0:02:24.6]} 23. Rc1 {[%clk 0:02:14.3]}
23... Rxc1+ {[%clk 0:02:18.3]} 24. Bxc1 {[%clk 0:02:15.2]} 24... Qa4 {[%clk
0:02:20.2]} 25. Be3 {[%clk 0:02:06.2]} 25... Nxe3 {[%clk 0:01:37.3]} 26. fxe3
{[%clk 0:02:05.3]} 26... Qxa2 {[%clk 0:01:35.8]} 27. Qc2 {[%clk 0:02:02.9]}
27... h6 {[%clk 0:01:28.3]} 28. e4 {[%clk 0:01:58.2]} 28... Qa5 {[%clk
0:01:26.4]} 29. Kf2 {[%clk 0:01:55.6]} 29... Qb4 {[%clk 0:01:24.6]} 30. Ke3
{[%clk 0:01:55.7]} 30... Qe1+ {[%clk 0:01:24.1]} 31. Kd3 {[%clk 0:01:47.8]}
31... Qg3+ {[%clk 0:01:22.6]} 32. Kc4 {[%clk 0:01:47.3]} 32... Qe3 {[%clk
0:01:21.4]} 33. b4 {[%clk 0:01:37]} 33... b5+ {[%clk 0:01:07.6]} 34. Kc5 {[%clk
0:01:34.4]} 34... g5 {[%clk 0:01:05.2]} 35. Kxb5 {[%clk 0:00:58.9]} 35... Qxd4
{[%clk 0:00:58.5]} 36. Qc5 {[%clk 0:00:51.6]} 36... Qd3+ {[%clk 0:00:59.4]} 37.
Kc6 {[%clk 0:00:44.1]} 37... Qxe4+ {[%clk 0:00:56.6]} 38. Kc7 {[%clk 0:00:45.4]}
38... Kg7 {[%clk 0:00:52.4]} 39. b5 {[%clk 0:00:43]} 39... Qd5 {[%clk
0:00:47.3]} 40. Qc6 {[%clk 0:00:43.9]} 40... Qxe5+ {[%clk 0:00:44]} 41. Kb7
{[%clk 0:00:44.5]} 41... Qd4 {[%clk 0:00:44.3]} 42. Qa6 {[%clk 0:00:41.5]} 42...
Qc5 {[%clk 0:00:44.6]} 43. Qc6 {[%clk 0:00:42.2]} 43... Qe7+ {[%clk 0:00:42.5]}
44. Ka6 {[%clk 0:00:38.9]} 44... h5 {[%clk 0:00:44.1]} 45. g4 {[%clk 0:00:39.4]}
45... h4 {[%clk 0:00:42.3]} 46. Qc3+ {[%clk 0:00:38.3]} 46... e5 {[%clk
0:00:43.8]} 47. Qe3 {[%clk 0:00:39.1]} 47... e4 {[%clk 0:00:41.2]} 48. Qd4+
{[%clk 0:00:40]} 48... Qf6+ {[%clk 0:00:38.5]} 49. Qxf6+ {[%clk 0:00:34.1]}
49... Kxf6 {[%clk 0:00:40.4]} 50. Kxa7 {[%clk 0:00:35.7]} 50... e3 {[%clk
0:00:41.3]} 51. b6 {[%clk 0:00:37.6]} 51... e2 {[%clk 0:00:43]} 52. b7 {[%clk
0:00:39.5]} 52... e1=Q {[%clk 0:00:44.6]} 53. b8=Q {[%clk 0:00:41.4]} 53... Qa1+
{[%clk 0:00:46.2]} 0-1

[Event "*** Titled Tuesday 3|2 Blitz"]
[Site "Chess.com"]
[Date "2015.09.01"]
[Round "3"]
[White "SidArun"]
[Black "Tal-Baronfew"]
[Result "0-1"]
[WhiteElo "1894"]
[BlackElo "2780"]
[TimeControl "180+2"]
[EndTime "11:34:06 PDT"]
[Termination "Tal-Baronfew won by resignation"]

1. e4 {[%clk 0:03:01.9]} 1... e5 {[%clk 0:03:00.7]} 2. f4 {[%clk 0:03:01.7]}
2... exf4 {[%clk 0:02:58.8]} 3. Nf3 {[%clk 0:03:01.6]} 3... Ne7 {[%clk
0:02:59.6]} 4. d4 {[%clk 0:02:58.3]} 4... d5 {[%clk 0:03:00.7]} 5. Nc3 {[%clk
0:02:55.1]} 5... dxe4 {[%clk 0:02:59.8]} 6. Nxe4 {[%clk 0:02:55.1]} 6... Nd5
{[%clk 0:02:55.1]} 7. Bc4 {[%clk 0:02:47.6]} 7... Be7 {[%clk 0:02:49.8]} 8. O-O
{[%clk 0:02:36.8]} 8... O-O {[%clk 0:02:50.4]} 9. Ne5 {[%clk 0:02:20.9]} 9...
Be6 {[%clk 0:02:33]} 10. Bxf4 {[%clk 0:02:07.5]} 10... Nxf4 {[%clk 0:02:33.4]}
11. Rxf4 {[%clk 0:02:08]} 11... Bxc4 {[%clk 0:02:31.3]} 12. Nxc4 {[%clk
0:02:08.6]} 12... Qd5 {[%clk 0:02:27]} 13. Ne3 {[%clk 0:02:05.6]} 13... Qb5
{[%clk 0:02:25.8]} 14. b3 {[%clk 0:02:00.4]} 14... Nc6 {[%clk 0:02:24.2]} 15. c4
{[%clk 0:01:57.8]} 15... Qa5 {[%clk 0:02:25.5]} 16. Nd5 {[%clk 0:01:53.9]} 16...
Rae8 {[%clk 0:02:20.3]} 17. Qd3 {[%clk 0:01:39.7]} 17... Nb4 {[%clk 0:02:13.9]}
18. Nxb4 {[%clk 0:01:30]} 18... Bxb4 {[%clk 0:02:13.1]} 19. a3 {[%clk
0:01:28.3]} 19... Be7 {[%clk 0:02:13.1]} 20. c5 {[%clk 0:00:57.5]} 20... c6
{[%clk 0:02:08.2]} 21. b4 {[%clk 0:00:54.1]} 21... Qc7 {[%clk 0:02:07.4]} 22.
Raf1 {[%clk 0:00:54.9]} 22... Rd8 {[%clk 0:02:06.4]} 23. Qf3 {[%clk 0:00:48.2]}
23... f6 {[%clk 0:01:59.5]} 24. Qg4 {[%clk 0:00:36.8]} 24... Qd7 {[%clk
0:01:34.5]} 25. Qxd7 {[%clk 0:00:34.5]} 25... Rxd7 {[%clk 0:01:36]} 26. Ng3
{[%clk 0:00:33.6]} 26... Rfd8 {[%clk 0:01:35.9]} 27. Nf5 {[%clk 0:00:34.5]}
27... Bf8 {[%clk 0:01:36.9]} 28. Rd1 {[%clk 0:00:34.2]} 28... g6 {[%clk
0:01:36.2]} 29. Ne3 {[%clk 0:00:35.2]} 29... Bh6 {[%clk 0:01:35.5]} 30. Re4
{[%clk 0:00:34.5]} 30... Rxd4 {[%clk 0:01:30.8]} 31. Rdxd4 {[%clk 0:00:34.4]}
31... Rxd4 {[%clk 0:01:31.9]} 32. Ng4 {[%clk 0:00:34.3]} 32... Rd1+ {[%clk
0:01:23]} 33. Kf2 {[%clk 0:00:34.9]} 33... Bg7 {[%clk 0:01:19.8]} 34. Re8+
{[%clk 0:00:32.9]} 34... Kf7 {[%clk 0:01:20.8]} 35. Rb8 {[%clk 0:00:34]} 35...
Rd7 {[%clk 0:01:20.7]} 36. Ne3 {[%clk 0:00:33.5]} 36... f5 {[%clk 0:01:15.9]}
37. Nc4 {[%clk 0:00:34.6]} 37... Ke6 {[%clk 0:01:11.2]} 38. Na5 {[%clk
0:00:34.6]} 38... b6 {[%clk 0:01:08.5]} 39. cxb6 {[%clk 0:00:35.5]} 39... Bd4+
{[%clk 0:01:05.5]} 40. Kf3 {[%clk 0:00:36.6]} 40... Bxb6 {[%clk 0:01:07.1]} 41.
Nxc6 {[%clk 0:00:37.5]} 41... Rd3+ {[%clk 0:01:08]} 42. Ke2 {[%clk 0:00:38.7]}
42... Re3+ {[%clk 0:01:08.2]} 43. Kd2 {[%clk 0:00:40]} 43... Rxa3 {[%clk
0:01:09.9]} 44. Rh8 {[%clk 0:00:35.4]} 44... h5 {[%clk 0:01:07]} 45. Rg8 {[%clk
0:00:34.8]} 45... Ra2+ {[%clk 0:01:08]} 46. Kc3 {[%clk 0:00:35.1]} 46... Rxg2
{[%clk 0:01:09.4]} 47. h4 {[%clk 0:00:32.7]} 47... Rg4 {[%clk 0:01:03.4]} 48.
Rg7 {[%clk 0:00:25.6]} 48... Kd6 {[%clk 0:01:00.1]} 49. b5 {[%clk 0:00:25.8]}
49... a6 {[%clk 0:00:49.5]} 50. Rb7 {[%clk 0:00:13.5]} 50... Bc5 {[%clk
0:00:42.3]} 51. bxa6 {[%clk 0:00:10.2]} 51... Kxc6 {[%clk 0:00:42.5]} 0-1

[Event "*** Titled Tuesday 3|2 Blitz"]
[Site "Chess.com"]
[Date "2015.09.01"]
[Round "3"]
[White "Tobi-Wan-Kenobi"]
[Black "Penguininja"]
[Result "1-0"]
[WhiteElo "2405"]
[BlackElo "2131"]
[TimeControl "180+2"]
[EndTime "11:34:14 PDT"]
[Termination "Tobi-Wan-Kenobi won by checkmate"]

1. e4 {[%clk 0:03:01.9]} 1... e5 {[%clk 0:02:53.1]} 2. Nf3 {[%clk 0:02:58.7]}
2... Nc6 {[%clk 0:02:54.4]} 3. Bb5 {[%clk 0:02:59.2]} 3... f5 {[%clk 0:02:55.6]}
4. Nc3 {[%clk 0:02:51.3]} 4... fxe4 {[%clk 0:02:53.4]} 5. Nxe4 {[%clk
0:02:51.2]} 5... Nf6 {[%clk 0:02:49.1]} 6. Nxf6+ {[%clk 0:02:47.5]} 6... Qxf6
{[%clk 0:02:51]} 7. Qe2 {[%clk 0:02:45.9]} 7... Be7 {[%clk 0:02:52.5]} 8. Bxc6
{[%clk 0:02:43.2]} 8... bxc6 {[%clk 0:02:54.4]} 9. Nxe5 {[%clk 0:02:42.5]} 9...
Qe6 {[%clk 0:02:54.5]} 10. Nf3 {[%clk 0:02:40.8]} 10... Qxe2+ {[%clk 0:02:56.4]}
11. Kxe2 {[%clk 0:02:42.1]} 11... d6 {[%clk 0:02:53.4]} 12. d3 {[%clk
0:02:41.3]} 12... Bg4 {[%clk 0:02:53.6]} 13. h3 {[%clk 0:02:41.3]} 13... Bh5
{[%clk 0:02:39.7]} 14. g4 {[%clk 0:02:39.6]} 14... Bg6 {[%clk 0:02:40.5]} 15.
Bg5 {[%clk 0:02:37.5]} 15... O-O {[%clk 0:02:37.7]} 16. Bxe7 {[%clk 0:02:35]}
16... Rae8 {[%clk 0:02:36.5]} 17. Rhe1 {[%clk 0:02:25.3]} 17... Rxe7+ {[%clk
0:02:26.3]} 18. Kf1 {[%clk 0:02:16.6]} 18... Ref7 {[%clk 0:02:17.2]} 19. Nd4
{[%clk 0:02:16.8]} 19... Rxf2+ {[%clk 0:02:16]} 20. Kg1 {[%clk 0:02:17.8]} 20...
Rd2 {[%clk 0:01:29.8]} 21. Re2 {[%clk 0:01:39.3]} 21... Rxe2 {[%clk 0:01:27.5]}
22. Nxe2 {[%clk 0:01:41.2]} 22... c5 {[%clk 0:00:48.7]} 23. Rf1 {[%clk
0:01:37.3]} 23... Rb8 {[%clk 0:00:47.9]} 24. b3 {[%clk 0:01:36.6]} 24... Re8
{[%clk 0:00:48.1]} 25. Nc3 {[%clk 0:01:31.2]} 25... c6 {[%clk 0:00:45.8]} 26.
Kg2 {[%clk 0:01:23.8]} 26... d5 {[%clk 0:00:40.6]} 27. Rf2 {[%clk 0:01:21.2]}
27... Re3 {[%clk 0:00:15.9]} 28. Rf3 {[%clk 0:01:15.2]} 28... Re7 {[%clk
0:00:12.7]} 29. Na4 {[%clk 0:00:52.5]} 29... c4 {[%clk 0:00:13.6]} 30. Nc5
{[%clk 0:00:50.2]} 30... cxd3 {[%clk 0:00:11]} 31. cxd3 {[%clk 0:00:49.3]} 31...
Re2+ {[%clk 0:00:10.4]} 32. Rf2 {[%clk 0:00:50.3]} 32... Re3 {[%clk 0:00:10.1]}
33. Rd2 {[%clk 0:00:45.2]} 33... Bf7 {[%clk 0:00:10.2]} 34. h4 {[%clk
0:00:44.2]} 34... d4 {[%clk 0:00:10.7]} 35. h5 {[%clk 0:00:33]} 35... Bd5+
{[%clk 0:00:12.1]} 36. Kh2 {[%clk 0:00:34.4]} 36... h6 {[%clk 0:00:10.4]} 37.
Na6 {[%clk 0:00:32.2]} 37... Bf3 {[%clk 0:00:08.8]} 38. Kg3 {[%clk 0:00:31.4]}
38... Be2+ {[%clk 0:00:08.2]} 39. Kf4 {[%clk 0:00:31.9]} 39... Bxd3 {[%clk
0:00:08.9]} 40. Nc5 {[%clk 0:00:28.9]} 40... Be2 {[%clk 0:00:04.2]} 41. Rxd4
{[%clk 0:00:29.2]} 41... Re7 {[%clk 0:00:05.9]} 42. Re4 {[%clk 0:00:26.8]} 42...
Rf7+ {[%clk 0:00:06.7]} 43. Kg3 {[%clk 0:00:26.6]} 43... Bb5 {[%clk 0:00:08.2]}
44. Re8+ {[%clk 0:00:25.6]} 44... Kh7 {[%clk 0:00:09.1]} 45. Ne6 {[%clk
0:00:27.5]} 45... c5 {[%clk 0:00:09.7]} 46. Rb8 {[%clk 0:00:23.6]} 46... Bc6
{[%clk 0:00:11.1]} 47. Nf8+ {[%clk 0:00:24.4]} 47... Kg8 {[%clk 0:00:12.3]} 48.
Ng6+ {[%clk 0:00:25]} 48... Kh7 {[%clk 0:00:14]} 49. Rh8# {[%clk 0:00:25]} 1-0

[Event "*** Titled Tuesday 3|2 Blitz"]
[Site "Chess.com"]
[Date "2015.09.01"]
[Round "3"]
[White "E-Shaposhnikov"]
[Black "jcibarra"]
[Result "0-1"]
[WhiteElo "2344"]
[BlackElo "2553"]
[TimeControl "180+2"]
[EndTime "11:34:30 PDT"]
[Termination "jcibarra won by resignation"]

1. e4 {[%clk 0:02:56.3]} 1... e5 {[%clk 0:03:01]} 2. Bc4 {[%clk 0:02:56.3]} 2...
Nf6 {[%clk 0:02:59.5]} 3. d3 {[%clk 0:02:57.1]} 3... c6 {[%clk 0:02:59.6]} 4.
Nf3 {[%clk 0:02:57.9]} 4... d5 {[%clk 0:03:00.2]} 5. Bb3 {[%clk 0:02:59.5]} 5...
Bd6 {[%clk 0:02:57.2]} 6. Nc3 {[%clk 0:03:00.5]} 6... d4 {[%clk 0:02:56.6]} 7.
Ne2 {[%clk 0:03:01.6]} 7... a5 {[%clk 0:02:57.6]} 8. a4 {[%clk 0:03:01.8]} 8...
Na6 {[%clk 0:02:57.5]} 9. Ng3 {[%clk 0:03:00.5]} 9... Nc5 {[%clk 0:02:58]} 10.
Bc4 {[%clk 0:03:01.7]} 10... Be6 {[%clk 0:02:55.7]} 11. Bxe6 {[%clk 0:02:59]}
11... Nxe6 {[%clk 0:02:57.6]} 12. O-O {[%clk 0:02:57.4]} 12... g6 {[%clk
0:02:53.1]} 13. Nd2 {[%clk 0:02:56.1]} 13... h5 {[%clk 0:02:51.6]} 14. Ne2
{[%clk 0:02:51.8]} 14... h4 {[%clk 0:02:49.5]} 15. h3 {[%clk 0:02:49.5]} 15...
Nh5 {[%clk 0:02:48.7]} 16. c3 {[%clk 0:02:44.6]} 16... Bc7 {[%clk 0:02:39.5]}
17. cxd4 {[%clk 0:02:36]} 17... exd4 {[%clk 0:02:39.8]} 18. Nc4 {[%clk
0:02:22.8]} 18... Qb8 {[%clk 0:02:23.2]} 19. Bd2 {[%clk 0:02:09.3]} 19... Kf8
{[%clk 0:02:10.4]} 20. Kh1 {[%clk 0:02:02.4]} 20... Kg7 {[%clk 0:02:09.6]} 21.
f4 {[%clk 0:01:56.9]} 21... Nexf4 {[%clk 0:01:55.7]} 22. Nxf4 {[%clk 0:01:52.2]}
22... Bxf4 {[%clk 0:01:47.3]} 23. Bxf4 {[%clk 0:01:41.3]} 23... Nxf4 {[%clk
0:01:47.8]} 24. Qf3 {[%clk 0:01:42.8]} 24... Nh5 {[%clk 0:01:40.1]} 25. Qxf7+
{[%clk 0:01:33]} 25... Kh6 {[%clk 0:01:41.4]} 26. Qe7 {[%clk 0:01:06.3]} 26...
Qd8 {[%clk 0:01:28.2]} 27. Rf7 {[%clk 0:01:04.5]} 27... Qxe7 {[%clk 0:01:26.9]}
28. Rxe7 {[%clk 0:01:06.4]} 28... Rhf8 {[%clk 0:01:20.4]} 29. Ne5 {[%clk
0:01:06.7]} 29... Ng3+ {[%clk 0:01:14]} 30. Kh2 {[%clk 0:01:06.7]} 30... Rae8
{[%clk 0:01:11]} 31. Ng4+ {[%clk 0:01:04.8]} 31... Kg5 {[%clk 0:01:10.6]} 32.
Rxb7 {[%clk 0:01:05.1]} 32... Nf1+ {[%clk 0:00:52.8]} 33. Kg1 {[%clk 0:01:05.6]}
33... Ne3 {[%clk 0:00:52.1]} 34. Nxe3 {[%clk 0:01:04.1]} 34... dxe3 {[%clk
0:00:54]} 35. Re1 {[%clk 0:01:04.6]} 35... Kf4 {[%clk 0:00:50.5]} 36. Rc7 {[%clk
0:00:50.2]} 36... Rc8 {[%clk 0:00:45.7]} 37. Rf1+ {[%clk 0:00:45.5]} 37... Kg5
{[%clk 0:00:43.6]} 38. Rxc8 {[%clk 0:00:39.4]} 38... Rxc8 {[%clk 0:00:44.6]} 39.
Re1 {[%clk 0:00:37.8]} 39... Kf4 {[%clk 0:00:44.6]} 40. e5 {[%clk 0:00:30.4]}
40... Rd8 {[%clk 0:00:40.4]} 41. e6 {[%clk 0:00:30.5]} 41... Re8 {[%clk
0:00:36.7]} 42. Rf1+ {[%clk 0:00:28.7]} 42... Ke5 {[%clk 0:00:36.5]} 43. Rf3
{[%clk 0:00:28.9]} 43... Kd4 {[%clk 0:00:37.5]} 44. Kf1 {[%clk 0:00:23.7]} 44...
Kxd3 {[%clk 0:00:37.9]} 45. Ke1 {[%clk 0:00:12.7]} 45... Rxe6 {[%clk 0:00:37.4]}
46. Rf4 {[%clk 0:00:14.4]} 46... g5 {[%clk 0:00:37.2]} 47. Rf5 {[%clk
0:00:15.3]} 47... Re4 {[%clk 0:00:36.1]} 48. Rc5 {[%clk 0:00:14.6]} 48... Rc4
{[%clk 0:00:27.4]} 0-1

[Event "*** Titled Tuesday 3|2 Blitz"]
[Site "Chess.com"]
[Date "2015.09.01"]
[Round "3"]
[White "rhungaski"]
[Black "FairChess_on_YouTube"]
[Result "1/2-1/2"]
[WhiteElo "2470"]
[BlackElo "2718"]
[TimeControl "180+2"]
[EndTime "11:35:15 PDT"]
[Termination "Game drawn by stalemate"]

1. Nf3 {[%clk 0:03:01.9]} 1... c5 {[%clk 0:03:00.1]} 2. c4 {[%clk 0:02:57.1]}
2... Nf6 {[%clk 0:03:01.2]} 3. g3 {[%clk 0:02:55.3]} 3... Nc6 {[%clk 0:02:58.4]}
4. Bg2 {[%clk 0:02:53.6]} 4... d5 {[%clk 0:02:59.1]} 5. cxd5 {[%clk 0:02:53.9]}
5... Nxd5 {[%clk 0:03:00.3]} 6. Nc3 {[%clk 0:02:55.1]} 6... Nc7 {[%clk
0:02:58.6]} 7. d3 {[%clk 0:02:53.1]} 7... e5 {[%clk 0:02:59.7]} 8. O-O {[%clk
0:02:52.8]} 8... Be7 {[%clk 0:03:00.8]} 9. Nd2 {[%clk 0:02:49.7]} 9... O-O
{[%clk 0:02:55.3]} 10. Bxc6 {[%clk 0:02:49.7]} 10... bxc6 {[%clk 0:02:56.4]} 11.
Nc4 {[%clk 0:02:49]} 11... f6 {[%clk 0:02:57.3]} 12. Be3 {[%clk 0:02:44]} 12...
Bh3 {[%clk 0:02:53.9]} 13. Re1 {[%clk 0:02:44.3]} 13... Nd5 {[%clk 0:02:53.8]}
14. Qa4 {[%clk 0:02:42.8]} 14... Nxc3 {[%clk 0:02:50.7]} 15. bxc3 {[%clk
0:02:43.2]} 15... Qd5 {[%clk 0:02:52.3]} 16. f3 {[%clk 0:02:42.8]} 16... f5
{[%clk 0:02:53.7]} 17. Na5 {[%clk 0:02:40.6]} 17... Rac8 {[%clk 0:02:43.2]} 18.
Qb3 {[%clk 0:02:19]} 18... Kh8 {[%clk 0:02:40.1]} 19. Rab1 {[%clk 0:02:03.8]}
19... e4 {[%clk 0:02:39.8]} 20. dxe4 {[%clk 0:01:48.1]} 20... fxe4 {[%clk
0:02:39.6]} 21. Qxd5 {[%clk 0:01:47.6]} 21... cxd5 {[%clk 0:02:40.5]} 22. fxe4
{[%clk 0:01:47.3]} 22... d4 {[%clk 0:02:25.9]} 23. cxd4 {[%clk 0:01:43.6]} 23...
cxd4 {[%clk 0:02:27.5]} 24. Bxd4 {[%clk 0:01:42.1]} 24... Rc2 {[%clk 0:02:29.1]}
25. Bf2 {[%clk 0:01:26.7]} 25... h5 {[%clk 0:02:21.1]} 26. Rb7 {[%clk
0:01:19.5]} 26... Bg5 {[%clk 0:02:03.9]} 27. Rb5 {[%clk 0:01:10.6]} 27... Bh6
{[%clk 0:02:01.7]} 28. Rxh5 {[%clk 0:01:08.1]} 28... Bg4 {[%clk 0:02:02]} 29.
Rh4 {[%clk 0:00:41.7]} 29... Bxe2 {[%clk 0:02:03]} 30. Be3 {[%clk 0:00:39.9]}
30... Bf3 {[%clk 0:01:58.8]} 31. Bxh6 {[%clk 0:00:22.9]} 31... gxh6 {[%clk
0:01:58.9]} 32. Rf4 {[%clk 0:00:21.4]} 32... Rxf4 {[%clk 0:01:49.7]} 33. gxf4
{[%clk 0:00:23.3]} 33... Rxa2 {[%clk 0:01:46.6]} 34. Nc4 {[%clk 0:00:24.3]}
34... Rg2+ {[%clk 0:01:48.1]} 35. Kf1 {[%clk 0:00:25.1]} 35... Rxh2 {[%clk
0:01:49.4]} 36. Nd6 {[%clk 0:00:23.7]} 36... Rh1+ {[%clk 0:01:38.6]} 37. Kf2
{[%clk 0:00:24.6]} 37... Rxe1 {[%clk 0:01:40.2]} 38. Kxe1 {[%clk 0:00:26.5]}
38... a5 {[%clk 0:01:41.7]} 39. Kd2 {[%clk 0:00:25.7]} 39... h5 {[%clk
0:01:41.1]} 40. Ke3 {[%clk 0:00:24.9]} 40... a4 {[%clk 0:01:40.4]} 41. Nc4
{[%clk 0:00:23.9]} 41... Bg4 {[%clk 0:01:37.6]} 42. f5 {[%clk 0:00:22.6]} 42...
h4 {[%clk 0:01:38]} 43. Kf4 {[%clk 0:00:24]} 43... h3 {[%clk 0:01:38.5]} 44. Kg3
{[%clk 0:00:23.8]} 44... Kg7 {[%clk 0:01:40.1]} 45. Na3 {[%clk 0:00:22.2]} 45...
Kf7 {[%clk 0:01:40.4]} 46. Nc4 {[%clk 0:00:21.1]} 46... Kf6 {[%clk 0:01:41.6]}
47. Kh2 {[%clk 0:00:19]} 47... Be2 {[%clk 0:01:40.6]} 48. Na3 {[%clk 0:00:18]}
48... Bf1 {[%clk 0:01:37.4]} 49. Kg1 {[%clk 0:00:19.1]} 49... Bg2 {[%clk
0:01:22.4]} 50. Kh2 {[%clk 0:00:20.1]} 50... Bxe4 {[%clk 0:01:03.4]} 51. Kxh3
{[%clk 0:00:22]} 51... Kxf5 {[%clk 0:00:55.3]} 52. Kg3 {[%clk 0:00:19.4]} 52...
Ke5 {[%clk 0:00:56.9]} 53. Kf2 {[%clk 0:00:17.6]} 53... Kd4 {[%clk 0:00:58.1]}
54. Ke2 {[%clk 0:00:18]} 54... Kc3 {[%clk 0:00:59]} 55. Kd1 {[%clk 0:00:16.4]}
55... Kb3 {[%clk 0:00:41.1]} 56. Nb5 {[%clk 0:00:16.9]} 56... Bd3 {[%clk
0:00:42.1]} 57. Kc1 {[%clk 0:00:16.1]} 57... Bh7 {[%clk 0:00:31.5]} 58. Nd4+
{[%clk 0:00:14.5]} 58... Ka2 {[%clk 0:00:32.8]} 59. Nb5 {[%clk 0:00:14.5]} 59...
Kb3 {[%clk 0:00:34.4]} 60. Nd4+ {[%clk 0:00:15.5]} 60... Kc3 {[%clk 0:00:33.8]}
61. Nb5+ {[%clk 0:00:15.6]} 61... Kb4 {[%clk 0:00:34.7]} 62. Kb2 {[%clk
0:00:15.7]} 62... Kxb5 {[%clk 0:00:36.1]} 63. Ka1 {[%clk 0:00:16.6]} 63... a3
{[%clk 0:00:36.9]} 64. Ka2 {[%clk 0:00:17.8]} 64... Kb4 {[%clk 0:00:38.6]} 65.
Ka1 {[%clk 0:00:19]} 65... Kb3 {[%clk 0:00:40.3]} 1/2-1/2